bitfinex-derivatives/quotes_SOLF0:USTF0_20250227
["timestamp","ask_amount","ask_price","bid_price","bid_amount"]
[1740624912269,7.3657,135.93,135.88,7.3681]
[1740624912467,12.02,135.97,135.86,200.24]
[1740624912762,3.1523,135.92,135.86,200.24]
[1740624913265,0.05635915,135.9,135.81,30.25067977]
[1740624913463,7.3694,135.86,135.81,37.62217977]
[1740624914466,7.4198758,135.85,135.82,0.05560092]
[1740624915867,7.3708,135.83,135.82,0.05560092]
[1740624917669,0.0501758,135.85,135.82,0.05560092]
[1740624918162,7.4200758,135.85,135.82,0.05560092]
[1740624918370,0.0501758,135.85,135.82,0.05560092]
[1740624919561,0.0501758,135.85,135.82,7.42690092]
[1740624919869,0.0501758,135.85,135.82,0.05560092]
[1740624920373,7.4198758,135.85,135.82,0.05560092]
[1740624920669,0.0501758,135.85,135.82,7.42690092]
[1740624920866,0.0501758,135.85,135.82,0.05560092]
[1740624921770,7.3706,135.84,135.82,0.05560092]
[1740624921970,0.0501758,135.85,135.82,0.05560092]
[1740624922168,7.3708,135.83,135.82,0.05560092]
[1740624923868,7.373,135.79,135.78,200.2]
[1740624925861,7.42150746,135.8,135.78,200.2]
[1740624926262,0.04910746,135.8,135.78,200.2]
[1740624926466,0.04910746,135.8,135.78,207.5732]
[1740624926671,0.04910746,135.8,135.78,200.2]
[1740624927673,7.373,135.79,135.78,200.2]
[1740624934570,7.3735,135.78,135.77,0.0464842]
[1740624934883,0.04910746,135.8,135.77,0.0464842]
[1740624935073,0.04910746,135.8,135.79,7.373]
[1740624935472,0.04910746,135.8,135.78,3.214]
[1740624935678,0.04910746,135.8,135.74,12.04]
[1740624936177,0.04910746,135.8,135.73,1.16396278]
[1740624936580,0.04910746,135.8,135.75,0.05430514]
[1740624937676,0.04910746,135.8,135.75,12.09430514]
[1740624937869,0.04910746,135.8,135.78,7.3731]
[1740624938073,0.04910746,135.8,135.75,12.09430514]
[1740624939583,3.1002,135.87,135.75,12.09430514]
[1740624939783,3.1002,135.87,135.75,12.04]
[1740624940383,7.3699,135.85,135.75,12.04]
[1740624940579,6.8052,135.9,135.76,3.1156]
[1740624940781,0.05321194,135.82,135.8,0.04699718]
[1740624940976,6.8052,135.9,135.81,200.38]
[1740624941486,6.8052,135.9,135.82,3.1156]
[1740624941685,7.3685,135.88,135.83,7.3707]
[1740624942081,0.0484231,135.87,135.84,0.04781914]
[1740624943189,7.3697,135.85,135.84,0.04781914]
[1740624946698,0.0484231,135.87,135.81,200.38]
[1740624946992,0.0484231,135.87,135.76,3.2374]
[1740624947192,192.0,135.88,135.73,1.16396278]
[1740624947389,192.0,135.88,135.71,200.34]
[1740624947597,192.0,135.87,135.71,200.34]
[1740624947898,0.05266961,135.8,135.78,0.0511164]
[1740624948097,192.0,135.87,135.72,7.3764]
[1740624948298,0.04776617,135.8,135.78,0.04715227]
[1740624948597,7.3746,135.76,135.72,7.3764]
[1740624949000,0.04963639,135.75,135.73,7.42474488]
[1740624949194,192.0,135.86,135.71,200.34]
[1740624949797,7.3716,135.82,135.71,200.34]
[1740624950192,12.04,135.89,135.71,200.34]
[1740624950398,0.04997882,135.78,135.75,0.05549614]
[1740624950598,7.3705,135.84,135.71,200.34]
[1740624950995,12.04,135.89,135.71,200.34]
[1740624951297,7.3699,135.85,135.71,200.34]
[1740624951802,0.05485153,135.79,135.77,0.05459354]
[1740624951998,7.3699,135.85,135.77,12.09459354]
[1740624952198,7.3699,135.85,135.78,3.404]
[1740624952902,7.3699,135.85,135.81,7.3718]
[1740624953204,0.05168921,135.83,135.81,7.3718]
[1740624955008,0.05168921,135.83,135.8,7.42135557]
[1740624956199,0.05168921,135.83,135.8,0.04925557]
[1740624956909,7.42278921,135.83,135.8,0.04925557]
[1740624957406,0.05168921,135.83,135.73,3.1535]
[1740624957605,198.8052,135.9,135.73,3.1535]
[1740624957807,192.0,135.89,135.73,3.1535]
[1740624958409,192.0,135.89,135.76,7.3743]
[1740624958609,0.048739,135.82,135.8,0.05456485]
[1740624958811,12.04,135.87,135.76,7.3743]
[1740624959010,0.0539297,135.8,135.78,0.04734847]
[1740624959308,12.04,135.87,135.76,7.3743]
[1740624959508,0.05289798,135.8,135.78,0.04972149]
[1740624959705,12.04,135.87,135.76,7.3743]
[1740624959909,0.05607617,135.8,135.77,0.04955547]
[1740624960210,0.0485319,135.8,135.75,7.375]
[1740624960411,0.0485319,135.8,135.77,0.05576829]
[1740624960615,7.3733,135.79,135.77,0.05576829]
[1740624960807,3.1727,135.79,135.67,6.3404]
[1740624961012,3.1727,135.79,135.67,9.2237]
[1740624961207,7.3755,135.75,135.67,9.2237]
[1740624961409,7.3755,135.75,135.7,7.3775]
[1740624961712,3.1727,135.79,135.67,9.2237]
[1740624961914,3.1727,135.79,135.72,0.052137]
[1740624961915,0.05607833,135.74,135.72,0.052137]
[1740624962110,3.1289,135.78,135.72,0.052137]
[1740624962312,7.3762,135.73,135.72,0.052137]
[1740624963407,0.04897394,135.74,135.72,0.052137]
[1740624963614,0.04897394,135.74,135.72,7.428337]
[1740624963807,0.04897394,135.74,135.72,0.052137]
[1740624965912,7.3762,135.73,135.72,0.052137]
[1740624966305,7.3768,135.72,135.67,6.3404]
[1740624966508,0.04897394,135.74,135.65,0.97274686]
[1740624966811,7.3784,135.69,135.65,0.97274686]
[1740624967012,12.04,135.75,135.65,0.97274686]
[1740624967412,12.04,135.75,135.65,8.35334686]
[1740624967712,0.04798053,135.71,135.69,0.05000228]
[1740624968215,7.3778,135.7,135.69,0.05000228]
[1740624968411,0.04798053,135.71,135.69,0.05000228]
[1740624969010,0.04798053,135.71,135.7,7.3778]
[1740624969312,3.1727,135.79,135.69,0.05000228]
[1740624969513,3.1727,135.79,135.66,14.9838]
[1740624970213,0.05010049,135.74,135.71,0.04776323]
[1740624970514,0.05010049,135.74,135.72,7.3764]
[1740624971620,0.05010049,135.74,135.73,7.3762]
[1740624972020,6.4649,135.84,135.72,3.149]
[1740624972216,6.4649,135.84,135.73,2.9994]
[1740624972217,9.7251,135.84,135.73,2.9994]
[1740624972419,9.7251,135.84,135.74,200.46]
[1740624972621,3.2602,135.84,135.74,200.46]
[1740624973020,3.2602,135.84,135.79,7.3728]
[1740624973322,0.05549263,135.8,135.79,7.3728]
[1740624973513,3.2602,135.84,135.79,7.3725]
[1740624973717,0.04900725,135.81,135.78,0.04871166]
[1740624974114,0.04900725,135.81,135.8,7.3724]
[1740624974315,3.2602,135.91,135.79,3.149]
[1740624974825,7.369,135.87,135.81,7.3718]
[1740624975024,3.2602,135.91,135.79,3.149]
[1740624975225,3.2602,135.91,135.83,7.3704]
[1740624975423,3.2602,135.91,135.79,3.149]
[1740624975627,0.04705564,135.88,135.86,0.05124528]
[1740624978029,7.3686,135.87,135.86,0.05124528]
[1740624978230,0.04705564,135.88,135.79,3.149]
[1740624978527,3.2602,135.91,135.79,3.149]
[1740624978728,3.2602,135.91,135.81,7.3717]
[1740624979224,3.2602,135.91,135.85,0.05227768]
[1740624979424,0.04741811,135.87,135.85,0.05227768]
[1740624979726,0.04741811,135.87,135.79,3.149]
[1740624980127,7.3707,135.84,135.79,10.5216]
[1740624980922,0.05312005,135.83,135.8,0.05223136]
[1740624983331,0.05312005,135.83,135.8,7.42463136]
[1740624983831,0.05312005,135.83,135.76,1.30016804]
[1740624985033,0.05312005,135.83,135.78,7.42311883]
[1740624985231,0.05312005,135.83,135.78,0.04991883]
[1740624985733,0.05312005,135.83,135.81,7.3718]
[1740624986234,7.3682,135.88,135.78,0.04991883]
[1740624986531,3.2602,135.91,135.76,1.30016804]
[1740624986733,7.3677,135.89,135.83,7.3704]
[1740624987536,0.05072412,135.87,135.85,0.04674584]
[1740624987735,7.3677,135.89,135.82,7.3712]
[1740624987936,0.05416058,135.87,135.85,0.04732013]
[1740624995239,7.42276058,135.87,135.85,0.04732013]
[1740624996442,0.05416058,135.87,135.85,0.04732013]
[1740624996742,0.05416058,135.87,135.85,200.34732013]
[1740624997137,0.05416058,135.87,135.86,7.3692]
[1740624997337,7.3667,135.91,135.85,200.34732013]
[1740624997338,3.4275,135.95,135.85,200.34732013]
[1740624997545,3.4275,135.95,135.86,3.3187]
[1740624997749,7.3651,135.94,135.87,7.3683]
[1740624998047,7.3651,135.94,135.86,3.3187]
[1740624998247,7.3651,135.94,135.88,7.3676]
[1740624998448,0.04881415,135.91,135.89,0.048574]
[1740625001049,0.04881415,135.91,135.89,7.416074]
[1740625002647,0.04881415,135.91,135.9,7.367]
[1740625004749,0.04881415,135.91,135.89,0.048574]
[1740625004944,0.04881415,135.91,135.85,175.62966328]
[1740625005150,7.3681,135.88,135.85,175.62966328]
[1740625005349,3.1415,135.9,135.85,175.62966328]
[1740625005651,3.4077,135.89,135.85,175.62966328]
[1740625006148,0.05620421,135.88,135.86,0.05537652]
[1740625008053,7.3686,135.87,135.86,0.05537652]
[1740625008649,7.3706,135.84,135.76,209.8037]
[1740625008851,3.4077,135.89,135.76,209.8037]
[1740625009051,7.3699,135.85,135.76,206.6635]
[1740625009654,0.04673367,135.82,135.81,7.3715]
[1740625009853,0.04673367,135.82,135.79,0.04986481]
[1740625010060,0.04673367,135.82,135.79,7.42276481]
[1740625010657,0.04673367,135.82,135.8,7.3724]
[1740625011058,0.04673367,135.82,135.79,0.04986481]
[1740625011761,0.04673367,135.82,135.8,7.3721]
[1740625011961,0.04673367,135.82,135.79,0.04986481]
[1740625012162,0.04673367,135.82,135.8,7.3721]
[1740625012659,0.04673367,135.82,135.79,0.04986481]
[1740625013460,0.04673367,135.82,135.76,200.26]
[1740625014263,12.02,135.81,135.7,30.25067977]
[1740625014464,6.4489,135.8,135.69,94.54572553]
[1740625014667,0.04901055,135.77,135.74,0.05271206]
[1740625015771,7.42321055,135.77,135.74,0.05271206]
[1740625015971,0.04901055,135.77,135.74,0.05271206]
[1740625016569,0.04901055,135.77,135.75,7.3748]
[1740625016771,0.04901055,135.77,135.74,0.05271206]
[1740625017171,0.04901055,135.77,135.74,7.42811206]
[1740625017472,0.04901055,135.77,135.74,0.05271206]
[1740625018473,0.04901055,135.77,135.68,200.3]
[1740625018674,192.0,135.79,135.68,200.3]
[1740625019372,7.3736,135.78,135.73,7.376]
[1740625019870,0.04724331,135.77,135.74,0.04931851]
[1740625022071,0.04724331,135.77,135.75,7.3751]
[1740625023376,192.0,135.87,135.74,0.04931851]
[1740625023578,202.0691,135.87,135.68,212.32]
[1740625023977,7.3708,135.84,135.78,7.3731]
[1740625024375,202.0691,135.87,135.78,7.3731]
[1740625024673,0.04653193,135.82,135.8,0.05364076]
[1740625024876,7.371,135.83,135.8,0.05364076]
[1740625025076,0.04963893,135.82,135.8,0.05364076]
[1740625030778,0.04963893,135.82,135.8,7.42594076]
[1740625031682,0.04963893,135.82,135.8,0.05364076]
[1740625031983,0.04963893,135.82,135.81,7.3719]
[1740625036473,192.0,135.93,135.8,0.05364076]
[1740625036782,198.553,135.93,135.78,200.38]
[1740625036982,6.553,135.93,135.78,201.85297098]
[1740625037179,3.2201,135.93,135.82,7.3711]
[1740625037380,3.2201,135.93,135.83,18.5788]
[1740625037580,0.05255769,135.89,135.86,0.05224921]
[1740625037884,0.05255769,135.89,135.88,7.3681]
[1740625039780,0.05255769,135.89,135.86,0.05224921]
[1740625040685,0.05255769,135.89,135.87,7.3686]
[1740625041386,0.05255769,135.89,135.88,7.3681]
[1740625041689,0.05255769,135.89,135.86,0.05224921]
[1740625043186,0.05255769,135.89,135.79,6.7007]
[1740625043387,12.02,135.91,135.79,6.7007]
[1740625043588,6.7748,135.9,135.79,14.0732]
[1740625044087,7.3701,135.85,135.79,14.0732]
[1740625044288,6.7748,135.9,135.81,7.3718]
[1740625044490,0.05174228,135.83,135.81,0.04725798]
[1740625044686,6.7748,135.9,135.79,6.7007]
[1740625044883,0.0469255,135.83,135.81,7.42804502]
[1740625045191,7.3701,135.85,135.81,7.3718]
[1740625045384,7.3701,135.85,135.81,7.4246024]
[1740625045589,7.3704,135.84,135.81,0.0528024]
[1740625045985,0.04694195,135.86,135.81,0.0528024]
[1740625046189,7.3713,135.82,135.81,0.0528024]
[1740625046400,192.0,135.89,135.78,200.38]
[1740625046690,7.3719,135.81,135.78,200.38]
[1740625046887,192.0,135.88,135.78,200.38]
[1740625047088,192.0,135.87,135.78,200.38]
[1740625047592,0.05362422,135.84,135.81,0.05451796]
[1740625049695,0.05362422,135.84,135.81,7.42601796]
[1740625050089,0.05362422,135.84,135.81,0.05451796]
[1740625052794,0.05362422,135.84,135.81,7.42631796]
[1740625053292,0.05362422,135.84,135.81,0.05451796]
[1740625053790,192.0,135.93,135.81,0.05451796]
[1740625053996,12.02,135.95,135.8,3.3528]
[1740625054699,7.3656,135.93,135.88,7.368]
[1740625054995,12.02,135.95,135.8,3.3528]
[1740625055198,0.05277994,135.92,135.89,0.05433309]
[1740625055398,12.02,135.95,135.89,0.04976589]
[1740625055597,0.05194925,135.92,135.89,0.04976589]
[1740625057900,7.41784925,135.92,135.89,0.04976589]
[1740625058401,0.05194925,135.92,135.89,0.04976589]
[1740625060002,0.05194925,135.92,135.9,7.3666]
[1740625061001,0.05194925,135.92,135.91,7.3664]
[1740625064906,199.3624,135.99,135.95,7.3643]
[1740625065099,3.264,136.02,135.95,7.3643]
[1740625065295,3.264,136.02,135.91,12.0]
[1740625065502,3.264,136.02,135.92,3.1328]
[1740625065701,3.264,136.02,135.97,7.3629]
[1740625066103,0.05355161,136.01,135.98,0.05136711]
[1740625066295,0.05355161,136.01,135.98,7.41396711]
[1740625069407,0.05355161,136.01,135.98,0.05136711]
[1740625070408,7.3616,136.0,135.98,0.05136711]
[1740625071007,0.05355161,136.01,135.78,147.58782643]
[1740625071205,3.264,136.02,135.88,18.6924]
[1740625072210,0.04903262,135.97,135.95,0.05043867]
[1740625072413,3.264,136.02,135.95,0.05043867]
[1740625072611,0.05635269,135.97,135.95,0.05043867]
[1740625072910,0.05272737,135.97,135.95,0.05043867]
[1740625074306,192.0,136.04,135.95,12.05043867]
[1740625074512,6.4049,136.05,135.95,12.0]
[1740625075403,7.3608,136.02,135.97,7.3631]
[1740625075602,0.0492846,136.01,135.99,0.05552063]
[1740625077007,7.3616,136.0,135.96,7.3636]
[1740625077407,3.4647,136.04,135.88,18.6924]
[1740625078211,0.05309985,135.98,135.96,0.05060894]
[1740625078411,3.4647,136.04,135.96,0.05060894]
[1740625078612,0.05388371,135.98,135.97,7.3632]
[1740625078815,3.4647,136.04,135.88,18.6924]
[1740625079014,0.05337003,135.99,135.96,0.05292348]
[1740625079210,7.41577003,135.99,135.96,0.05292348]
[1740625080618,7.363,135.98,135.96,0.05292348]
[1740625080815,0.05337003,135.99,135.96,0.05292348]
[1740625081115,7.41577003,135.99,135.96,0.05292348]
[1740625081317,0.05337003,135.99,135.96,0.05292348]
[1740625082119,7.3627,135.98,135.96,0.05292348]
[1740625083218,7.3632,135.97,135.96,0.05292348]
[1740625083518,0.05337003,135.99,135.88,6.6924]
[1740625083720,7.3642,135.96,135.91,7.3662]
[1740625083918,192.0,136.02,135.88,3.476]
[1740625084219,7.3641,135.96,135.91,7.3662]
[1740625084420,192.0,136.02,135.88,3.476]
[1740625084723,7.3637,135.96,135.95,0.05043349]
[1740625085519,204.0,135.96,135.81,30.25067977]
[1740625085725,195.1542,135.95,135.81,30.25067977]
[1740625086218,217.2742,135.95,135.81,30.25067977]
[1740625086420,12.0,135.94,135.81,30.25067977]
[1740625086626,7.3696,135.86,135.81,30.25067977]
[1740625086831,0.04730421,135.89,135.81,237.76217977]
[1740625087127,192.0,135.93,135.82,0.05363321]
[1740625087622,192.0,135.93,135.81,230.39067977]
[1740625087827,0.05349237,135.89,135.86,0.04912405]
[1740625088225,7.3681,135.88,135.86,0.04912405]
[1740625088433,0.05349237,135.89,135.81,230.39067977]
[1740625088625,0.05349237,135.89,135.81,200.14]
[1740625089231,12.05349237,135.89,135.81,200.14]
[1740625089426,3.3761,135.88,135.81,200.14]
[1740625089623,195.3761,135.88,135.84,0.04806487]
[1740625089931,0.0515727,135.86,135.81,194.9098]
[1740625090133,192.0,135.85,135.72,3.3931]
[1740625090326,192.0,135.84,135.72,3.3931]
[1740625090928,0.0536509,135.79,135.77,0.05320586]
[1740625091229,192.0,135.84,135.77,0.05320586]
[1740625091441,0.05632933,135.79,135.77,0.05320586]
[1740625091732,192.0,135.84,135.77,0.05320586]
[1740625091934,0.05664349,135.79,135.77,0.05320586]
[1740625092131,192.0,135.84,135.77,0.05320586]
[1740625092325,0.05133823,135.79,135.77,0.05320586]
[1740625092523,12.0,135.82,135.71,200.24]
[1740625092825,0.05100042,135.79,135.71,200.24]
[1740625093327,7.3768,135.72,135.71,200.24]
[1740625094034,0.04944822,135.73,135.71,200.24]
[1740625094236,0.04944822,135.73,135.68,9.28867977]
[1740625094432,12.0,135.74,135.68,9.28867977]
[1740625094632,12.0,135.74,135.66,118.09452643]
[1740625095031,7.3789,135.68,135.66,118.09452643]
[1740625095233,12.0,135.74,135.61,30.44442938]
[1740625095530,0.05194422,135.69,135.66,0.05286777]
[1740625098636,0.05194422,135.69,135.6,12.0]
[1740625098941,7.3782,135.7,135.63,7.3812]
[1740625099230,192.0,135.74,135.6,12.0]
[1740625099231,7.3773,135.72,135.6,12.0]
[1740625099438,192.0,135.74,135.6,12.0]
[1740625099738,7.3778,135.71,135.6,12.0]
[1740625100039,0.04968981,135.68,135.66,0.03833571]
[1740625102034,192.0,135.74,135.66,0.03833571]
[1740625102229,111.06726731,135.79,135.68,7.3788]
[1740625102735,7.3756,135.75,135.68,7.3788]
[1740625102931,7.3756,135.75,135.69,7.3783]
[1740625103133,0.04675908,135.73,135.7,0.04819253]
[1740625103439,99.04726731,135.79,135.67,6.4407]
[1740625103637,99.04726731,135.79,135.7,7.3774]
[1740625103833,0.04794749,135.73,135.7,7.43180845]
[1740625104140,12.17211341,135.73,135.7,0.04887585]
[1740625104440,12.17211341,135.73,135.59,200.48]
[1740625104635,3.2771,135.72,135.59,207.8634]
[1740625104836,7.3798,135.67,135.59,200.48]
[1740625105540,0.05400727,135.64,135.62,0.03914966]
[1740625108942,0.05400727,135.64,135.59,200.48]
[1740625109442,7.3821,135.63,135.59,200.48]
[1740625109846,0.05400727,135.64,135.59,200.48]
[1740625111641,7.3819,135.63,135.59,200.48]
[1740625112246,7.43530727,135.64,135.6,7.3833]
[1740625112542,0.05400727,135.64,135.6,3.2639]
[1740625112737,0.05400727,135.64,135.61,3.4185]
[1740625113736,0.05400727,135.64,135.62,7.3818]
[1740625114137,0.05400727,135.64,135.61,3.4185]
[1740625114541,7.43550727,135.64,135.6,3.2639]
[1740625114841,0.05400727,135.64,135.6,3.2639]
[1740625115238,7.43560727,135.64,135.6,3.2639]
[1740625115442,0.05400727,135.64,135.6,3.2639]
[1740625116650,7.3821,135.63,135.6,3.2639]
[1740625117243,7.3827,135.62,135.6,3.2639]
[1740625118244,7.3831,135.61,135.59,200.48]
[1740625118550,0.05400727,135.64,135.59,200.48]
[1740625119144,7.3833,135.6,135.59,200.48]
[1740625119648,7.43647361,135.61,135.59,200.48]
[1740625119942,7.43647361,135.61,135.59,175.75356365]
[1740625121150,0.05367361,135.61,135.59,175.75356365]
[1740625122146,7.3833,135.6,135.59,175.75356365]
[1740625125250,0.05367361,135.61,135.59,175.75356365]
[1740625125448,192.0,135.69,135.59,175.75356365]
[1740625125749,3.3758,135.7,135.6,7.383]
[1740625126150,15.7158,135.7,135.6,7.383]
[1740625126752,0.04653404,135.66,135.64,0.05005374]
[1740625126945,12.34,135.72,135.6,3.1609]
[1740625127146,0.05390462,135.66,135.64,0.04780159]
[1740625127347,7.3799,135.67,135.64,3.29070159]
[1740625127548,0.04914494,135.66,135.64,3.29070159]
[1740625127751,7.3806,135.65,135.64,1.59e-06]
[1740625127948,0.04914494,135.66,135.64,1.59e-06]
[1740625128648,192.0,135.73,135.64,1.59e-06]
[1740625128851,3.5684,135.78,135.66,7.3799]
[1740625128852,7.3781,135.7,135.66,7.3799]
[1740625129253,7.3781,135.7,135.65,7.3805]
[1740625129453,12.32,135.76,135.61,3.503]
[1740625129752,12.3,135.77,135.61,3.503]
[1740625130056,0.05204169,135.7,135.67,0.0508795]
[1740625130252,12.3,135.77,135.61,3.503]
[1740625130556,0.04691099,135.7,135.67,0.05165675]
[1740625130954,12.3,135.77,135.64,7.3807]
[1740625131155,7.3788,135.69,135.67,0.05479884]
[1740625131453,12.3,135.77,135.62,3.2782]
[1740625131653,0.05040052,135.69,135.67,0.05501856]
[1740625131854,12.3,135.77,135.62,10.66]
[1740625132054,0.05287526,135.69,135.67,0.05145282]
[1740625132251,12.3,135.77,135.62,3.2782]
[1740625132457,0.05025947,135.69,135.67,0.0502819]
[1740625132755,12.3,135.77,135.62,3.2782]
[1740625133057,3.5684,135.78,135.62,3.2782]
[1740625133251,3.4833,135.78,135.62,3.2782]
[1740625133652,204.28,135.8,135.62,3.2782]
[1740625133855,0.04853173,135.71,135.69,0.05258508]
[1740625134052,7.3752,135.75,135.7,200.62]
[1740625134358,204.28,135.8,135.71,6.729]
[1740625134555,12.28,135.8,135.71,6.729]
[1740625135254,7.3751,135.75,135.74,0.05493302]
[1740625136461,7.3747,135.76,135.74,0.05493302]
[1740625136652,0.04745629,135.77,135.74,0.05493302]
[1740625137458,7.3739,135.78,135.74,0.05493302]
[1740625138561,7.42218023,135.77,135.74,0.05493302]
[1740625139656,0.04808023,135.77,135.74,0.05493302]
[1740625139858,0.04808023,135.77,135.74,7.43053302]
[1740625140057,0.04808023,135.77,135.74,0.05493302]
[1740625141265,7.42218023,135.77,135.74,0.05493302]
[1740625142863,7.42218023,135.77,135.74,3.24283302]
[1740625143160,192.0,135.86,135.74,3.24283302]
[1740625143361,192.0,135.86,135.74,3.1879]
[1740625144365,0.05436866,135.81,135.79,0.04721121]
[1740625144665,192.0,135.86,135.79,0.04721121]
[1740625144864,0.05087765,135.81,135.79,0.04721121]
[1740625145063,3.1969,135.87,135.79,0.04721121]
[1740625145564,0.04898516,135.84,135.79,0.04721121]
[1740625145860,0.04898516,135.84,135.74,3.1879]
[1740625146166,15.4138,135.94,135.8,0.05419366]
[1740625146356,192.0,135.93,135.81,200.46]
[1740625146560,0.04833425,135.87,135.84,0.05539343]
[1740625146958,0.05368807,135.87,135.84,0.05411997]
[1740625149967,0.05368807,135.87,135.84,7.42431997]
[1740625152462,7.3681,135.88,135.84,7.42431997]
[1740625152463,192.0,135.93,135.84,0.05411997]
[1740625152866,192.0,135.93,135.83,3.3177]
[1740625153766,192.0,135.93,135.87,0.04909137]
[1740625153767,0.04827127,135.89,135.87,0.04909137]
[1740625156663,0.04827127,135.89,135.87,7.41749137]
[1740625158263,0.04827127,135.89,135.87,0.04909137]
[1740625158470,7.3681,135.88,135.87,0.04909137]
[1740625162473,7.41597127,135.89,135.87,0.04909137]
[1740625162775,0.04827127,135.89,135.87,0.04909137]
[1740625162976,7.3681,135.88,135.87,0.04909137]
[1740625163878,0.04827127,135.89,135.87,0.04909137]
[1740625164380,0.04827127,135.89,135.88,7.3681]
[1740625164782,192.0,135.97,135.9,7.367]
[1740625164981,7.3646,135.95,135.88,6.6885]
[1740625165379,7.3646,135.95,135.89,7.3673]
[1740625165882,0.05580487,135.93,135.91,0.05328953]
[1740625167179,0.05580487,135.93,135.82,3.5145]
[1740625167374,192.0,135.97,135.82,6.994]
[1740625167375,12.02,135.94,135.82,6.994]
[1740625167583,7.3666,135.91,135.84,7.3698]
[1740625167781,204.02,135.97,135.82,6.994]
[1740625168182,14.7276,135.96,135.82,6.994]
[1740625168382,0.055653,135.91,135.88,0.04642885]
[1740625168684,0.055653,135.91,135.82,3.4795]
[1740625168879,14.7276,135.96,135.82,3.4795]
[1740625168880,192.0,135.94,135.82,3.4795]
[1740625169286,192.0,135.94,135.82,10.8506]
[1740625169585,192.0,135.94,135.82,3.4795]
[1740625169781,7.3681,135.88,135.87,0.04884123]
[1740625170083,192.0,135.94,135.82,3.4795]
[1740625170285,192.0,135.93,135.82,3.4795]
[1740625170484,7.3699,135.85,135.82,3.4795]
[1740625171187,7.42162779,135.85,135.82,3.53101637]
[1740625171893,0.05172779,135.85,135.82,10.90191637]
[1740625172084,0.05172779,135.85,135.82,3.53101637]
[1740625172284,0.05172779,135.85,135.83,3.2682]
[1740625174291,7.42152779,135.85,135.83,3.2682]
[1740625175188,7.3702,135.84,135.83,3.2682]
[1740625176092,7.3708,135.83,135.82,3.53101637]
[1740625176392,0.05172779,135.85,135.82,3.53101637]
[1740625176591,0.05172779,135.85,135.82,6.81501637]
[1740625176890,0.05172779,135.85,135.83,7.3707]
[1740625177293,7.42152779,135.85,135.82,6.81501637]
[1740625177490,0.05172779,135.85,135.82,6.81501637]
[1740625177786,0.05172779,135.85,135.82,14.18621637]
[1740625178491,7.42152779,135.85,135.82,6.81501637]
[1740625179391,7.42152779,135.85,135.82,14.18631637]
[1740625180191,0.05172779,135.85,135.82,14.18631637]
[1740625181193,192.0,135.93,135.82,6.81501637]
[1740625181492,3.2641,135.95,135.82,6.7635]
[1740625181694,7.3656,135.93,135.82,6.7635]
[1740625182382,0.04958544,135.89,135.86,0.04722231]
[1740625182581,3.2641,135.95,135.82,6.7635]
[1740625182785,0.04997597,135.89,135.86,0.05149721]
[1740625182991,3.2641,135.95,135.82,6.7635]
[1740625183189,0.05284524,135.89,135.86,0.0504859]
[1740625183398,7.3671,135.9,135.84,7.3702]
[1740625183591,0.0524625,135.89,135.86,0.05025859]
[1740625183791,7.3667,135.91,135.85,7.3694]
[1740625183992,0.04903085,135.89,135.86,0.05509174]
[1740625185093,7.3681,135.88,135.86,0.05509174]
[1740625185492,0.04903085,135.89,135.86,0.05509174]
[1740625185993,7.3686,135.87,135.86,0.05509174]
[1740625189302,7.3706,135.84,135.81,200.46]
[1740625189496,12.0,135.9,135.81,200.46]
[1740625189695,0.4096,135.89,135.81,200.46]
[1740625190099,192.0,135.88,135.77,30.54813403]
[1740625190396,214.12,135.88,135.77,30.54813403]
[1740625190596,0.05027095,135.84,135.81,8.91e-06]
[1740625190903,204.04,135.83,135.81,8.91e-06]
[1740625191090,7.3713,135.82,135.81,8.91e-06]
[1740625191493,192.0,135.83,135.81,8.91e-06]
[1740625193699,199.371,135.83,135.81,8.91e-06]
[1740625194503,192.0,135.83,135.81,8.91e-06]
[1740625194698,7.3713,135.82,135.81,8.91e-06]
[1740625196497,0.05027095,135.84,135.81,8.91e-06]
[1740625196797,7.3708,135.83,135.81,8.91e-06]